bitfinex-derivatives/quotes_BTCF0:USTF0_20240917
["timestamp","ask_amount","ask_price","bid_price","bid_amount"]
[1726616227120,0.1,60235.0,60219.0,0.44383677]
[1726616227121,0.4608,60230.0,60222.0,0.083005]
[1726616227322,0.083004,60223.0,60222.0,0.083005]
[1726616227520,0.4608,60230.0,60221.0,0.1]
[1726616227931,0.083001,60225.0,60219.0,0.3608]
[1726616228138,0.083001,60225.0,60224.0,0.1]
[1726616229439,0.083001,60225.0,60224.0,0.101]
[1726616229741,0.083001,60225.0,60224.0,0.103]
[1726616230123,0.09292002,60225.0,60224.0,0.103]
[1726616232529,0.00249074,60229.0,60228.0,0.082997]
[1726616232727,0.00249074,60229.0,60228.0,0.182997]
[1726616233128,0.00249074,60229.0,60228.0,0.543797]
[1726616233331,0.3608,60238.0,60237.0,0.082984]
[1726616233538,0.082979,60241.0,60237.0,0.182984]
[1726616233934,0.082979,60241.0,60238.0,0.15]
[1726616234340,0.082979,60241.0,60238.0,0.232983]
[1726616234341,0.09268839,60241.0,60238.0,0.232983]
[1726616234533,0.082979,60241.0,60238.0,0.232983]
[1726616236145,0.01249027,60239.0,60238.0,0.233983]
[1726616236341,0.02149027,60239.0,60238.0,0.234983]
[1726616242350,0.10447127,60239.0,60238.0,0.002]
[1726616255959,0.10447127,60239.0,60238.0,0.102]
[1726616256156,0.10447127,60239.0,60238.0,0.184983]
[1726616269654,0.10447127,60239.0,60238.0,0.084983]
[1726616271468,0.13652437,60239.0,60238.0,0.084983]
[1726616274073,0.13652437,60239.0,60238.0,0.184983]
[1726616276570,0.13652438,60239.0,60238.0,0.184983]
[1726616280281,0.18745227,60239.0,60238.0,0.002]
[1726616280468,0.21950737,60239.0,60238.0,0.002]
[1726616280664,0.18745227,60239.0,60238.0,0.002]
[1726616281974,0.10447127,60239.0,60238.0,0.002]
[1726616287188,0.13652633,60239.0,60238.0,0.002]
[1726616287379,0.10447127,60239.0,60238.0,0.002]
[1726616288585,0.10447127,60239.0,60238.0,0.102]
[1726616291084,0.13652507,60239.0,60238.0,0.102]
[1726616292296,0.13652493,60239.0,60238.0,0.102]
[1726616292494,0.10447127,60239.0,60238.0,0.102]
[1726616292792,0.10447127,60239.0,60238.0,0.184983]
[1726616302511,0.13652453,60239.0,60238.0,0.184983]
[1726616304404,0.13652414,60239.0,60238.0,0.184983]
[1726616307101,0.13652414,60239.0,60238.0,0.084983]
[1726616309212,0.13652461,60239.0,60238.0,0.084983]
[1726616309408,0.10447127,60239.0,60238.0,0.084983]
[1726616310118,0.13652465,60239.0,60238.0,0.084983]
[1726616319018,0.13652494,60239.0,60238.0,0.084983]
[1726616323932,0.13652491,60239.0,60238.0,0.084983]
[1726616328734,0.10447127,60239.0,60238.0,0.084983]
[1726616328934,0.13652491,60239.0,60238.0,0.084983]
[1726616329134,0.71754591,60239.0,60238.0,0.002]
[1726616329433,0.082999,60226.0,60225.0,0.04981161]
[1726616329622,0.082987,60235.0,60224.0,0.3608]
[1726616329623,0.083001,60225.0,60224.0,0.04981161]
[1726616329823,0.4608,60225.0,60221.0,0.04981161]
[1726616330025,0.083008,60220.0,60219.0,0.09871161]
[1726616330234,0.083008,60220.0,60219.0,0.0489]
[1726616330837,0.072008,60220.0,60219.0,0.0489]
[1726616331528,0.3608,60225.0,60219.0,0.0489]
[1726616331733,0.443801,60225.0,60224.0,0.1]
[1726616332430,0.082998,60228.0,60224.0,0.1]
[1726616332744,0.082998,60228.0,60223.0,0.083003]
[1726616332745,0.082998,60228.0,60227.0,0.1]
[1726616334236,0.082998,60228.0,60227.0,0.102]
[1726616335137,0.082998,60228.0,60227.0,0.104]
[1726616340543,0.082998,60228.0,60227.0,0.186998]
[1726616341043,0.01229196,60229.0,60228.0,0.082997]
[1726616341244,0.01229196,60229.0,60228.0,0.131097]
[1726616341538,0.00249055,60229.0,60228.0,0.131097]
[1726616343136,0.403781,60240.0,60228.0,1.14622]
[1726616343442,0.082981,60240.0,60238.0,0.1]
[1726616343643,0.08547127,60239.0,60238.0,0.1]
[1726616344934,0.09547127,60239.0,60238.0,0.101]
[1726616346344,0.10547127,60239.0,60238.0,0.102]
[1726616347848,0.10547127,60239.0,60238.0,0.184983]
[1726616348146,0.102981,60239.0,60238.0,0.184983]
[1726616349043,0.102981,60239.0,60238.0,0.084983]
[1726616349246,0.102981,60239.0,60238.0,0.545783]
[1726616349637,0.02,60239.0,60238.0,0.545783]
[1726616357051,0.02,60239.0,60238.0,0.184983]
[1726616358153,0.01550981,60239.0,60238.0,0.2761565]
[1726616362447,0.01550981,60239.0,60238.0,0.7741965]
[1726616362761,0.01550981,60239.0,60238.0,1.3741965]
[1726616362950,0.01,60239.0,60238.0,1.4571795]
[1726616363253,0.00249025,60243.0,60242.0,0.165954]
[1726616363461,0.00249025,60243.0,60242.0,0.626754]
[1726616364650,0.00249025,60243.0,60242.0,2.126754]
[1726616365352,0.37078817,60255.0,60253.0,0.082962]
[1726616365561,0.37078817,60255.0,60253.0,0.182962]
[1726616366862,0.3238,60254.0,60253.0,0.183962]
[1726616367257,0.3308,60254.0,60253.0,0.184962]
[1726616368564,0.01,60254.0,60253.0,0.184962]
[1726616377861,0.01,60254.0,60253.0,0.545762]
[1726616379267,0.003,60254.0,60253.0,0.544762]
[1726616379568,0.011,60254.0,60253.0,0.545762]
[1726616379765,0.016,60254.0,60253.0,0.545762]
[1726616383067,0.016,60254.0,60253.0,1.043642]
[1726616384069,0.016,60254.0,60253.0,0.545762]
[1726616384772,0.016,60254.0,60253.0,1.043642]
[1726616384962,0.016,60254.0,60253.0,0.545762]
[1726616385476,0.016,60254.0,60253.0,0.184962]
[1726616385671,0.016,60254.0,60253.0,0.545762]
[1726616386067,0.016,60254.0,60253.0,0.628724]
[1726616391669,0.016,60254.0,60253.0,0.267924]
[1726616391968,0.016,60254.0,60253.0,0.628724]
[1726616395469,0.016,60254.0,60253.0,0.545762]
[1726616403271,0.016,60254.0,60253.0,0.59540525]
[1726616405685,0.016,60254.0,60253.0,0.545762]
[1726616406183,0.016,60254.0,60253.0,0.59552608]
[1726616409985,0.016,60254.0,60253.0,0.59554419]
[1726616410283,0.016,60254.0,60253.0,0.545762]
[1726616413086,0.016,60254.0,60253.0,0.184962]
[1726616413382,0.016,60254.0,60253.0,0.545762]
[1726616414186,0.016,60254.0,60253.0,0.445762]
[1726616414374,0.016,60254.0,60253.0,0.51213826]
[1726616416089,0.016,60254.0,60253.0,0.445762]
[1726616416578,0.016,60254.0,60253.0,0.51213826]
[1726616418988,0.016,60254.0,60253.0,0.59510026]
[1726616419281,0.016,60254.0,60253.0,0.51213826]
[1726616419482,0.016,60254.0,60253.0,0.59510026]
[1726616419690,0.016,60254.0,60253.0,0.51213826]
[1726616420084,0.016,60254.0,60253.0,0.445762]
[1726616422082,0.016,60254.0,60253.0,0.084962]
[1726616422279,0.016,60254.0,60253.0,0.51213826]
[1726616422678,0.016,60254.0,60253.0,0.445762]
[1726616423391,0.016,60254.0,60253.0,0.528724]
[1726616423690,0.016,60254.0,60253.0,0.445762]
[1726616427690,0.016,60254.0,60253.0,0.084962]
[1726616427884,0.016,60254.0,60253.0,0.445762]
[1726616429496,0.016,60254.0,60253.0,0.51212954]
[1726616432095,0.016,60254.0,60253.0,0.445762]
[1726616434798,0.016,60254.0,60253.0,0.084962]
[1726616434993,0.016,60254.0,60253.0,0.445762]
[1726616435196,0.016,60254.0,60253.0,0.084962]
[1726616435397,0.016,60254.0,60253.0,0.445762]
[1726616436596,0.016,60254.0,60253.0,0.084962]
[1726616436795,0.016,60254.0,60253.0,0.445762]
[1726616437606,0.016,60254.0,60253.0,0.51212954]
[1726616445607,0.016,60254.0,60253.0,0.445762]
[1726616450112,0.016,60254.0,60253.0,0.545762]
[1726616451711,0.016,60254.0,60253.0,0.61214064]
[1726616452515,0.016,60254.0,60253.0,0.545762]
[1726616455711,0.00248905,60264.0,60263.0,0.082948]
[1726616456318,0.00248905,60264.0,60263.0,0.14928369]
[1726616457019,0.00948905,60264.0,60263.0,0.15028369]
[1726616457222,0.00948905,60264.0,60263.0,0.083948]
[1726616458022,0.00948905,60264.0,60263.0,0.084948]
[1726616459231,0.00948905,60264.0,60263.0,0.13467147]
[1726616459622,0.00948905,60264.0,60263.0,0.084948]
[1726616459821,0.00948905,60264.0,60263.0,0.09453821]
[1726616467634,0.00948905,60264.0,60263.0,0.14426168]
[1726616467931,0.00948905,60264.0,60263.0,0.1608739]
[1726616468130,0.00948905,60264.0,60263.0,0.16079392]
[1726616471028,0.00948905,60264.0,60263.0,0.16076393]
[1726616473334,0.00948905,60264.0,60263.0,0.09453821]
[1726616473533,0.00948905,60264.0,60263.0,0.19453821]
[1726616473938,0.00948905,60264.0,60263.0,0.26076393]
[1726616474634,0.007,60264.0,60263.0,0.26076393]
[1726616478737,0.007,60264.0,60263.0,0.19453821]
[1726616478931,0.007,60264.0,60263.0,0.27748621]
[1726616479137,0.25,60269.0,60268.0,0.082942]
[1726616479339,0.25,60269.0,60268.0,0.626684]
[1726616479745,0.25,60269.0,60268.0,0.543742]
[1726616480246,0.25,60269.0,60268.0,0.59339154]
[1726616480644,0.25,60269.0,60268.0,0.59439154]
[1726616483241,0.25,60269.0,60268.0,0.544742]
[1726616483443,0.25,60269.0,60268.0,0.59439154]
[1726616485148,0.25,60269.0,60268.0,0.23359154]
[1726616485354,0.25,60269.0,60268.0,0.544742]
[1726616486953,0.25,60269.0,60268.0,0.183942]
[1726616487257,0.25,60269.0,60268.0,0.544742]
[1726616488157,0.25,60269.0,60268.0,0.61096772]
[1726616489455,0.25,60269.0,60268.0,0.25016772]
[1726616489651,0.25,60269.0,60268.0,0.544742]
[1726616493858,0.25,60269.0,60268.0,0.183942]
[1726616494076,0.25,60269.0,60268.0,0.544742]
[1726616497875,0.25,60269.0,60265.0,0.06633596]
[1726616497876,1.4307,60269.0,60265.0,0.06633596]
[1726616498167,1.4307,60269.0,60262.0,0.3608]
[1726616498168,0.1,60266.0,60262.0,0.3608]
[1726616498358,0.082953,60260.0,60259.0,0.00248905]
[1726616498554,0.680793,60260.0,60259.0,0.00248905]
[1726616498757,0.680793,60260.0,60255.0,0.3608]
[1726616498758,0.082958,60256.0,60255.0,0.3608]
[1726616498953,0.182958,60256.0,60255.0,0.3608]
[1726616499563,0.082958,60256.0,60255.0,0.4608]
[1726616499762,0.048,60262.0,60255.0,0.4608]
[1726616499971,0.048,60262.0,60259.0,0.1]
[1726616500262,0.048,60262.0,60261.0,0.443751]
[1726616500963,0.00248899,60264.0,60263.0,0.082948]
[1726616501266,0.00248899,60264.0,60263.0,0.182948]
[1726616502860,0.00348899,60264.0,60263.0,0.182948]
[1726616503563,0.00348899,60264.0,60263.0,0.183948]
[1726616508169,0.00348899,60264.0,60263.0,0.544748]
[1726616510865,0.00348899,60264.0,60263.0,0.444748]
[1726616513879,0.00348899,60264.0,60263.0,0.083948]
[1726616524186,0.08643599,60264.0,60263.0,0.083948]
[1726616524483,0.08643599,60264.0,60263.0,0.183948]
[1726616526081,0.08643599,60264.0,60263.0,0.083948]
[1726616526276,1.04503599,60264.0,60263.0,0.001]
[1726616526481,1.72798299,60264.0,60263.0,0.001]
[1726616526681,1.72798299,60264.0,60256.0,0.082958]
[1726616526682,0.082957,60257.0,60256.0,0.082958]
[1726616526879,0.082961,60254.0,60253.0,0.3608]
[1726616527078,0.1,60254.0,60247.0,0.42713596]
[1726616527283,0.082964,60252.0,60249.0,0.082966]
[1726616527790,0.580884,60252.0,60249.0,0.082966]
[1726616528687,0.566884,60252.0,60249.0,0.082966]
[1726616529182,0.566884,60252.0,60251.0,0.01548907]
[1726616529785,0.567884,60252.0,60251.0,0.02748907]
[1726616529990,0.069964,60252.0,60251.0,0.02748907]
[1726616531087,0.07995283,60252.0,60251.0,0.02748907]
[1726616531296,0.07995283,60252.0,60243.0,0.15]
[1726616531297,0.082975,60244.0,60240.0,0.08298]
[1726616531485,0.0491,60243.0,60240.0,0.08298]
[1726616532487,0.0491,60243.0,60241.0,0.01448961]
[1726616532885,0.0501,60243.0,60241.0,0.02148961]
[1726616533480,0.498,60242.0,60241.0,0.02148961]
[1726616533695,0.580977,60242.0,60241.0,0.02148961]
[1726616533998,1.180977,60242.0,60241.0,0.02148961]
[1726616534294,1.230277,60242.0,60241.0,0.02148961]
[1726616534880,1.231277,60242.0,60241.0,0.02048961]
[1726616535293,1.231277,60242.0,60241.0,0.01348961]
[1726616535590,1.232277,60242.0,60241.0,0.01448961]
[1726616535785,1.593077,60242.0,60241.0,0.01448961]
[1726616537096,1.60288543,60242.0,60241.0,0.01448961]
[1726616537796,1.60188543,60242.0,60241.0,0.00348961]
[1726616538092,1.60288543,60242.0,60241.0,0.01348961]
[1726616538484,1.68586243,60242.0,60241.0,0.01248961]
[1726616538683,1.68586243,60242.0,60241.0,0.01]
[1726616540189,1.08586243,60242.0,60241.0,0.01]
[1726616540394,1.68586243,60242.0,60241.0,0.01]
[1726616542402,1.08586243,60242.0,60241.0,0.01]
[1726616542694,1.68586243,60242.0,60241.0,0.01]
[1726616544193,2.04666243,60242.0,60241.0,0.01]
[1726616544788,1.54866243,60242.0,60241.0,0.01]
[1726616544983,0.16598,60233.0,60232.0,0.00249036]
[1726616545188,0.67678,60233.0,60232.0,0.00249036]
[1726616546288,0.67878,60233.0,60232.0,0.01449036]
[1726616546894,0.44579,60233.0,60232.0,0.01449036]
[1726616547089,0.59579,60233.0,60232.0,0.01449036]
[1726616548297,0.59479,60233.0,60232.0,0.01449036]
[1726616548501,0.6056483,60233.0,60232.0,0.01449036]
[1726616549900,0.6056483,60233.0,60232.0,0.012]
[1726616549901,1.7037283,60233.0,60232.0,0.012]
[1726616550095,1.7867183,60233.0,60232.0,0.012]
[1726616555307,1.1867183,60233.0,60232.0,0.012]
[1726616555501,1.7867183,60233.0,60232.0,0.012]
[1726616555701,1.1867183,60233.0,60232.0,0.012]
[1726616556907,1.7867183,60233.0,60232.0,0.012]
[1726616557106,0.5386383,60233.0,60232.0,0.012]
[1726616559503,1.0494383,60233.0,60232.0,0.012]
[1726616560800,0.9664483,60233.0,60232.0,0.012]
[1726616564609,0.2448483,60233.0,60232.0,0.012]
[1726616564802,0.9664483,60233.0,60232.0,0.012]
[1726616565998,0.9164483,60233.0,60232.0,0.012]
[1726616567113,0.1948483,60233.0,60232.0,0.012]
[1726616567314,0.9164483,60233.0,60232.0,0.012]
[1726616567806,0.9994383,60233.0,60232.0,0.012]
[1726616573916,0.6386383,60233.0,60232.0,0.012]
[1726616578245,0.2778383,60233.0,60232.0,0.012]
[1726616578559,0.6386383,60233.0,60232.0,0.012]
[1726616580055,0.67069763,60233.0,60232.0,0.012]
[1726616580258,0.67069769,60233.0,60232.0,0.012]
[1726616581546,0.30989769,60233.0,60232.0,0.012]
[1726616581753,0.67069769,60233.0,60232.0,0.012]
[1726616583054,0.6386383,60233.0,60232.0,0.012]
[1726616584563,0.5556483,60233.0,60232.0,0.012]
[1726616584760,0.4556483,60233.0,60232.0,0.012]
[1726616593159,0.5386383,60233.0,60232.0,0.012]
[1726616593767,0.8994383,60233.0,60232.0,0.012]
[1726616596364,0.1778383,60233.0,60232.0,0.012]
[1726616596569,0.8994383,60233.0,60232.0,0.012]
[1726616600174,0.94850974,60233.0,60232.0,0.012]
[1726616601073,0.94850972,60233.0,60232.0,0.012]
[1726616601971,1.03149972,60233.0,60232.0,0.012]
[1726616602167,0.9164483,60233.0,60232.0,0.012]
[1726616603663,0.5556483,60233.0,60232.0,0.012]
[1726616603872,0.9164483,60233.0,60232.0,0.012]
[1726616605270,0.8164483,60233.0,60232.0,0.012]
[1726616605568,0.9164483,60233.0,60232.0,0.012]
[1726616606965,0.94850969,60233.0,60232.0,0.012]
[1726616610573,0.94850968,60233.0,60232.0,0.012]
[1726616613267,0.9164483,60233.0,60232.0,0.012]
[1726616618681,0.5556483,60233.0,60232.0,0.012]
[1726616622783,0.1948483,60233.0,60232.0,0.012]
[1726616622974,0.5556483,60233.0,60232.0,0.012]
[1726616635289,0.58770784,60233.0,60232.0,0.012]
[1726616636192,0.5556483,60233.0,60232.0,0.012]
[1726616637393,0.58770736,60233.0,60232.0,0.012]
[1726616637685,0.5556483,60233.0,60232.0,0.012]
[1726616638092,0.58770728,60233.0,60232.0,0.012]
[1726616638286,0.4556483,60233.0,60232.0,0.012]
[1726616640089,0.48770818,60233.0,60232.0,0.012]
[1726616640292,0.58770818,60233.0,60232.0,0.012]
[1726616640491,0.67069818,60233.0,60232.0,0.012]
[1726616640694,0.58770818,60233.0,60232.0,0.012]
[1726616641195,0.71699818,60233.0,60232.0,0.012]
[1726616642194,0.63400818,60233.0,60232.0,0.012]
[1726616642397,0.71699818,60233.0,60232.0,0.012]
[1726616642699,0.63400818,60233.0,60232.0,0.012]
[1726616646096,0.99480818,60233.0,60232.0,0.012]
[1726616646500,0.99480954,60233.0,60232.0,0.012]
[1726616646802,0.27320954,60233.0,60232.0,0.012]
[1726616646998,0.99480954,60233.0,60232.0,0.012]
[1726616647192,0.27320954,60233.0,60232.0,0.012]
[1726616647391,0.99480954,60233.0,60232.0,0.012]
[1726616647804,0.27320954,60233.0,60232.0,0.012]
[1726616647993,0.99480954,60233.0,60232.0,0.012]
[1726616648492,0.99480954,60233.0,60222.0,0.0481]
[1726616648493,0.083004,60223.0,60222.0,0.0481]
[1726616648796,0.543804,60223.0,60222.0,0.0481]
[1726616649993,0.543804,60223.0,60218.0,0.0499]
[1726616649994,0.083007,60221.0,60218.0,0.0499]
[1726616650190,0.1,60219.0,60218.0,0.13291]
[1726616650394,0.3618,60223.0,60222.0,0.083005]
[1726616650596,0.3628,60223.0,60222.0,0.183005]
[1726616650803,0.3628,60223.0,60222.0,0.083005]
[1726616650804,0.2879,60223.0,60222.0,0.083005]
[1726616651197,0.2869,60223.0,60222.0,0.083005]
[1726616651702,0.2859,60223.0,60222.0,0.083005]
[1726616652102,0.2869,60223.0,60222.0,0.083005]
[1726616652302,0.2879,60223.0,60222.0,0.19291158]
[1726616653105,0.002,60223.0,60222.0,0.19291158]
[1726616653305,0.002,60223.0,60222.0,0.24267963]
[1726616653809,0.002,60223.0,60222.0,0.14267963]
[1726616657916,0.002,60223.0,60222.0,0.13277305]
[1726616658314,0.002,60223.0,60222.0,0.083005]
[1726616661619,0.002,60223.0,60222.0,0.13277753]
[1726616665630,0.002,60223.0,60222.0,0.083005]
[1726616668323,0.002,60223.0,60222.0,0.183005]
[1726616669333,0.002,60223.0,60222.0,0.083005]
[1726616681338,0.002,60223.0,60222.0,0.14934096]
[1726616681640,0.002,60223.0,60222.0,0.083005]
[1726616685447,0.002,60223.0,60222.0,0.14934096]
[1726616686038,0.002,60223.0,60222.0,0.083005]
[1726616686249,0.002,60223.0,60222.0,0.14934096]
[1726616698643,0.085004,60223.0,60222.0,0.14934096]
[1726616698847,0.085004,60223.0,60222.0,0.083005]
[1726616699252,0.085004,60223.0,60222.0,0.14944505]
[1726616700351,0.002,60223.0,60222.0,0.14944505]
[1726616700756,0.3208,60238.0,60223.0,0.083004]
[1726616700952,0.5476,60247.0,60234.0,0.1]
[1726616700953,0.03205773,60237.0,60234.0,0.1]
[1726616701255,0.1,60244.0,60234.0,0.1]
[1726616701256,0.00084,60240.0,60239.0,0.082981]
[1726616701455,0.00084,60240.0,60234.0,0.1458]
[1726616701456,0.3608,60242.0,60240.0,0.08298]
[1726616701656,0.3608,60242.0,60241.0,0.082979]
[1726616701852,0.443777,60242.0,60241.0,0.082979]
[1726616702158,0.443777,60242.0,60237.0,0.1]
[1726616702159,0.3608,60242.0,60237.0,0.1]
[1726616702357,0.3608,60242.0,60241.0,0.182979]
[1726616704362,0.00053581,60242.0,60241.0,1.641779]
[1726616704759,0.00053581,60242.0,60241.0,1.70821053]
[1726616704957,0.00153581,60242.0,60241.0,1.641779]
[1726616705163,0.00153581,60242.0,60241.0,1.65169495]
[1726616705760,0.001,60242.0,60241.0,1.65169495]
[1726616706060,0.002,60242.0,60241.0,1.65169495]
[1726616706963,0.002,60242.0,60241.0,1.05169495]
[1726616707159,0.002,60242.0,60241.0,1.65169495]
[1726616707360,0.001,60242.0,60241.0,1.65169495]
[1726616707661,0.002,60242.0,60241.0,1.65169495]
[1726616707964,0.001,60242.0,60241.0,1.05169495]
[1726616708161,0.102,60242.0,60241.0,0.443779]
[1726616708551,0.002,60242.0,60241.0,0.443779]
[1726616708751,0.102,60242.0,60241.0,0.443779]
[1726616708959,0.102,60242.0,60241.0,0.3608]
[1726616709354,0.102,60242.0,60237.0,0.082984]
[1726616709663,0.1,60238.0,60237.0,0.082984]
[1726616710957,0.1,60238.0,60237.0,0.084984]
[1726616712966,0.1,60241.0,60239.0,0.082981]
[1726616713865,0.1,60241.0,60240.0,0.08298]
[1726616714558,0.1072896,60243.0,60240.0,0.08298]
[1726616714759,0.1072896,60243.0,60236.0,0.3608]
[1726616714760,0.1072896,60243.0,60241.0,0.082978]
[1726616715260,0.00249012,60243.0,60242.0,0.082977]
[1726616716967,0.00349012,60243.0,60242.0,0.082977]
[1726616717367,0.00449012,60243.0,60242.0,0.082977]
[1726616717874,0.00549012,60243.0,60242.0,0.082977]
[1726616718266,0.00649012,60243.0,60242.0,0.082977]
[1726616722377,0.00649012,60243.0,60242.0,0.182977]
[1726616730173,0.3608,60253.0,60242.0,0.182977]
[1726616730174,0.3608,60268.0,60243.0,0.082976]
[1726616730372,0.130254,60260.0,60256.0,0.082958]
[1726616730570,0.1,60259.0,60256.0,0.082958]
[1726616731278,0.1,60259.0,60252.0,0.3608]
[1726616732074,0.108,60259.0,60258.0,0.082955]
[1726616733181,0.112,60259.0,60258.0,0.082955]
[1726616733885,0.108,60259.0,60258.0,0.082955]
[1726616734080,0.115,60259.0,60258.0,0.082955]
[1726616734687,0.111,60259.0,60258.0,0.082955]
[1726616734875,0.121,60259.0,60258.0,0.082955]
[1726616735082,0.021,60259.0,60258.0,0.082955]
[1726616737678,0.61884,60259.0,60249.0,0.00248901]
[1726616737880,0.182966,60250.0,60249.0,0.00248901]
[1726616738086,0.182966,60250.0,60239.0,0.3608]
[1726616738282,0.1,60240.0,60239.0,0.443781]
[1726616739280,0.1,60243.0,60241.0,0.082979]
[1726616739888,0.0024899,60244.0,60241.0,0.082979]
[1726616739889,0.01212903,60244.0,60241.0,0.082979]
[1726616740186,0.01212903,60244.0,60243.0,0.082976]
[1726616740187,0.0024899,60244.0,60243.0,0.082976]
[1726616742383,0.0084899,60244.0,60243.0,0.082976]
[1726616764226,0.0084899,60244.0,60243.0,0.165952]
[1726616764227,0.006,60244.0,60243.0,0.165952]
[1726616764415,0.37070759,60263.0,60259.0,0.082954]
[1726616764711,0.3608,60263.0,60259.0,0.15]
[1726616765399,0.00248961,60264.0,60263.0,0.082948]
[1726616765604,0.00248961,60264.0,60263.0,0.232948]
[1726616766801,0.00248961,60264.0,60263.0,0.593748]
[1726616767211,0.01648961,60264.0,60263.0,0.593748]
[1726616768206,0.03048961,60264.0,60263.0,0.594748]
[1726616769009,0.03048961,60264.0,60263.0,0.60244015]
[1726616770307,0.03048961,60264.0,60263.0,1.70024015]
[1726616770308,0.028,60264.0,60263.0,1.70024015]
[1726616771216,0.028,60264.0,60263.0,1.78318815]
[1726616771609,0.028,60264.0,60263.0,1.20244015]
[1726616771813,0.003,60264.0,60263.0,1.69924015]
[1726616772005,0.005,60264.0,60263.0,1.69924015]
[1726616772410,0.005,60264.0,60263.0,1.78218815]
[1726616772617,0.5476,60284.0,60274.0,0.165866]
[1726616772915,0.00084,60284.0,60274.0,0.954533]
[1726616773113,0.00248829,60289.0,60288.0,0.082914]
[1726616773317,0.00248829,60289.0,60288.0,0.232914]
[1726616774011,0.00248829,60289.0,60288.0,0.082914]
[1726616774312,0.00248829,60289.0,60283.0,0.3608]
[1726616774918,0.082921,60283.0,60282.0,0.00248828]
[1726616775113,0.009,60284.0,60282.0,0.00248828]
[1726616775313,0.0473,60283.0,60282.0,0.00248828]
[1726616776507,0.0753,60283.0,60282.0,0.00448828]
[1726616779913,0.0753,60283.0,60282.0,0.08741028]
[1726616782023,0.028,60283.0,60282.0,0.08741028]
[1726616783513,0.028,60283.0,60282.0,0.17891028]
[1726616783912,0.00248827,60287.0,60286.0,0.082917]
[1726616784117,0.00248827,60287.0,60286.0,0.443717]
[1726616785126,0.02448827,60287.0,60286.0,0.445717]
[1726616791827,0.10740327,60287.0,60286.0,0.3628]
[1726616792122,0.10740327,60287.0,60282.0,0.00248801]
[1726616792123,0.082921,60283.0,60282.0,0.00248801]
[1726616792420,0.232921,60283.0,60282.0,0.00248801]
[1726616792621,1.330561,60283.0,60282.0,0.00248801]
[1726616792825,1.377261,60283.0,60282.0,0.00248801]
[1726616793929,1.391261,60283.0,60282.0,0.00448801]
[1726616794241,0.791261,60283.0,60282.0,0.00448801]
[1726616794933,0.791261,60283.0,60282.0,0.00248801]
[1726616795116,0.805261,60283.0,60282.0,0.00348801]
[1726616795519,0.307621,60283.0,60282.0,0.00348801]
[1726616795835,0.157621,60283.0,60282.0,0.00348801]
[1726616796629,0.156621,60283.0,60282.0,0.00348801]
[1726616797730,0.156621,60283.0,60282.0,0.00248801]
[1726616797933,0.157621,60283.0,60282.0,0.00348801]
[1726616798125,0.153621,60283.0,60282.0,0.00448801]
[1726616798827,0.157621,60283.0,60282.0,0.00348801]
[1726616799432,0.16528917,60283.0,60282.0,0.00348801]
[1726616800028,0.15128917,60283.0,60282.0,0.00248801]
[1726616800231,0.16528917,60283.0,60282.0,0.00348801]
[1726616809125,0.11858917,60283.0,60282.0,0.00348801]
[1726616814733,0.028,60283.0,60282.0,0.59721001]
[1726616815742,0.028,60283.0,60282.0,0.64673989]
[1726616816239,0.028,60283.0,60282.0,0.60517235]
[1726616816428,0.028,60283.0,60282.0,0.65470155]
[1726616816634,0.028,60283.0,60282.0,0.65470645]
[1726616817737,0.028,60283.0,60282.0,0.60517235]
[1726616817939,0.028,60283.0,60282.0,0.59721001]
[1726616818130,0.178,60283.0,60282.0,0.36428801]
[1726616818336,0.110921,60283.0,60282.0,0.36428801]
[1726616819245,0.028,60283.0,60282.0,0.44721001]
[1726616820637,0.028,60283.0,60282.0,0.80801001]
[1726616822238,0.028,60283.0,60282.0,1.91333434]
[1726616823439,0.028,60283.0,60282.0,0.81569434]
[1726616825949,0.028,60283.0,60282.0,2.31569434]
[1726616826244,0.028,60283.0,60282.0,2.30801001]
[1726616827130,0.028,60283.0,60282.0,0.80801001]
[1726616827335,0.028,60283.0,60282.0,0.44721001]
[1726616828346,0.110921,60283.0,60282.0,0.44721001]
[1726616830841,0.260921,60283.0,60282.0,0.00348801]
[1726616831842,0.2688149,60283.0,60282.0,0.00348801]
[1726616834939,0.1188149,60283.0,60282.0,0.00348801]
[1726616848266,0.110921,60283.0,60282.0,0.00348801]
[1726616850860,0.110921,60283.0,60282.0,0.15348801]
[1726616851065,0.110921,60283.0,60282.0,0.23641001]
[1726616851457,0.028,60283.0,60282.0,0.23641001]
[1726616851968,0.028,60283.0,60282.0,0.54721001]
[1726616852169,0.028,60283.0,60282.0,2.04721001]
[1726616852573,0.028,60283.0,60282.0,3.14485001]
[1726616852771,0.028,60283.0,60282.0,3.19438411]
[1726616853467,0.00248827,60287.0,60286.0,0.082917]
[1726616853675,0.00248827,60287.0,60286.0,0.182917]
[1726616853877,0.00248827,60287.0,60286.0,1.280557]
[1726616854072,0.00248827,60287.0,60286.0,1.330557]
[1726616854890,0.02248827,60287.0,60286.0,1.332557]
[1726616857686,0.02248827,60287.0,60286.0,0.732557]
[1726616858085,0.02248827,60287.0,60286.0,0.234917]
[1726616858695,0.02248827,60287.0,60286.0,0.24253899]
[1726616859388,0.02248827,60287.0,60286.0,0.60333899]
[1726616860890,0.02,60287.0,60286.0,0.60333899]
[1726616861190,0.02,60287.0,60286.0,1.78389599]
[1726616869190,0.02,60287.0,60286.0,1.18389599]
[1726616871301,0.02,60287.0,60286.0,0.60333899]
[1726616876004,0.02,60287.0,60286.0,0.55333899]
[1726616878205,0.02,60287.0,60286.0,0.19253899]